[Event "Swiss Youth-ch U14 2023"]
[Site "Olten"]
[Date "2023.05.27"]
[Round "4.4"]
[White "Udipi, Kala Kishan"]
[Black "Stoll, Arturo"]
[Result "1/2-1/2"]
[ECO "E38"]
[WhiteElo "1904"]
[BlackElo "1607"]
[Annotator "NA RC"]
[PlyCount "116"]
[EventDate "2023.05.26"]
[EventType "swiss"]
[EventCountry "SUI"]
[SourceTitle "playchess.com"]
[Source "ChessBase"]
[SourceQuality "1"]
[TimeControl "5400+30"]

1. d4 {[%emt 0:00:03]} Nf6 {[%emt 0:00:12]} 2. c4 {[%emt 0:00:03]} e6 {[%emt 0:00:07]} 3. Nf3 {[%emt 0:00:11]} c5 {[%emt 0:00:11]} 4. Nc3 {[%emt 0:02:03]} cxd4 {[%emt 0:00:51]} 5. Nxd4 {[%emt 0:00:14]} Nc6 {[%emt 0:01:27]} 6. e3 {[%emt 0:06:00]} Bb4 {[%emt 0:01:18]} 7. Qc2 {[%emt 0:00:49]} O-O {[%emt 0:02:06]} 8. a3 {[%emt 0:03:03]} Bxc3+ {[%emt 0:09:11]} 9. Qxc3 {[%emt 0:00:41]} Ne4 {[%emt 0:04:32]} 10. Nxc6 {[%emt 0:14:48]} bxc6 {[%emt 0:03:22]} 11. Qd4 {[%emt 0:01:08]} (11. Qc2 $5 {[%cal Rc2e4]} d5 12. b3 $11) 11... d5 {[%emt 0:05:06]} 12. cxd5 {[%emt 1:07:27]} exd5 {[%emt 0:04:10]} 13. b4 {[%emt 0:00:00]} c5 {[%emt 0:02:13]} 14. bxc5 {[%emt 0:00:00]} Qa5+ {[%emt 0:00:08]} 15. Bd2 {[%emt 0:00:00]} Nxd2 {[%emt 0:00:11]} 16. Qxd2 {[%emt 0:00:00]} Qxc5 {[%emt 0:00:39]} 17. Be2 {[%emt 0:00:00]} Be6 $11 {[%emt 0:02:48]} 18. O-O {[%emt 0:00:00]} Rfd8 {[%emt 0:02:22]} 19. Rfd1 {[%emt 0:00:00]} Rac8 {[%emt 0:02:31]} 20. Bf3 {[%emt 0:00:00]} Qc3 {[%emt 0:01:42]} 21. Qxc3 {[%emt 0:00:00]} Rxc3 {[%emt 0:00:10]} 22. Rd4 {[%emt 0:00:00]} Rdc8 {[%emt 0:01:29]} 23. h3 {[%emt 0:00:00]} R8c4 {[%emt 0:01:59]} 24. Rdd1 {[%emt 0:00:00]} g6 {[%emt 0:07:39]} 25. Bxd5 {[%emt 0:00:00]} Bxd5 {[%emt 0:00:17]} 26. Rxd5 {[%emt 0:00:00]} Ra4 {[%emt 0:00:10]} 27. Rb1 {[%emt 0:05:40]} Rc7 {[%emt 0:04:15]} 28. Rb3 {[%emt 0:00:49]} Rac4 {[%emt 0:00:20]} 29. Rd2 {[%emt 0:00:46]} Rc1+ {[%emt 0:00:15]} 30. Kh2 {[%emt 0:00:02]} R1c2 {[%emt 0:00:28]} 31. Rxc2 {[%emt 0:01:21]} Rxc2 {[%emt 0:00:02]} 32. f4 {[%emt 0:00:25]} Rc4 {[%emt 0:00:09]} 33. Rb4 {[%emt 0:00:51]} Rc3 {[%emt 0:00:09]} 34. Ra4 {[%emt 0:00:06]} Rxe3 {[%emt 0:00:56]} 35. Rxa7 {[%emt 0:00:03]} Kg7 {[%emt 0:00:11]} 36. a4 {[%emt 0:00:27]} Ra3 {[%emt 0:00:04]} 37. h4 {[%emt 0:01:26]} h5 {[%emt 0:00:14]} 38. a5 {[%emt 0:00:19]} Kf6 {[%emt 0:00:12]} 39. g3 {[%emt 0:00:17]} Ra2+ {[%emt 0:00:07]} 40. Kh3 {[%emt 0:00:12]} Kg7 {[%emt 0:00:12]} 41. Ra6 {[%emt 0:00:38]} Rb2 {[%emt 0:00:38]} 42. Rb6 {[%emt 0:00:48]} Ra2 {[%emt 0:00:05]} 43. a6 {[%emt 0:00:32]} Kh7 {[%emt 0:01:13]} 44. Rb7 {[%emt 0:00:36]} Rxa6 {[%emt 0:00:05]} 45. Rxf7+ {[%emt 0:00:03]} Kh6 {[%emt 0:00:20]} 46. Re7 {[%emt 0:00:51]} Ra3 {[%emt 0:00:44]} 47. Kg2 {[%emt 0:00:15]} Ra2+ {[%emt 0:00:33]} 48. Kf3 {[%emt 0:00:05]} Ra3+ {[%emt 0:00:06]} 49. Re3 {[%emt 0:01:08]} Ra4 {[%emt 0:00:03]} 50. g4 {[%emt 0:00:46]} hxg4+ {[%emt 0:00:21]} 51. Kxg4 {[%emt 0:00:02]} Ra1 {[%emt 0:00:32]} 52. Rg3 {[%emt 0:00:25]} Ra4 {[%emt 0:00:12]} 53. Kf3 {[%emt 0:00:55]} Ra3+ {[%emt 0:00:11]} 54. Kf2 {[%emt 0:00:31]} Ra2+ {[%emt 0:00:09]} 55. Kf3 {[%emt 0:00:24]} Ra3+ {[%emt 0:00:01]} 56. Kg4 {[%emt 0:00:19]} Ra4 {[%emt 0:00:01]} 57. Rh3 {[%emt 0:00:42]} Ra1 {[%emt 0:00:25]} 58. Rg3 {[%emt 0:00:24]} Ra4 {[%emt 0:49:26]} 1/2-1/2

[Event "Swiss Youth-ch U14 2023"]
[Site "Olten"]
[Date "2023.05.27"]
[Round "4.5"]
[White "Paholok, Adam"]
[Black "Haas, Anthony"]
[Result "1/2-1/2"]
[ECO "C42"]
[WhiteElo "1556"]
[BlackElo "1530"]
[Annotator "NA RC"]
[PlyCount "74"]
[EventDate "2023.05.26"]
[EventType "swiss"]
[EventCountry "SUI"]
[SourceTitle "playchess.com"]
[Source "ChessBase"]
[SourceQuality "1"]
[TimeControl "5400+30"]

1. e4 {[%emt 0:01:02]} e5 {[%emt 0:02:18]} 2. Nf3 {[%emt 0:00:09]} Nf6 {[%emt 0:00:04]} 3. Nc3 {[%emt 0:00:13]} Bb4 {[%emt 0:00:03]} 4. Nxe5 {[%emt 0:00:20]} O-O {[%emt 0:01:03]} 5. Nd3 {[%emt 0:00:32]} Bxc3 {[%emt 0:00:18]} 6. dxc3 {[%emt 0:00:05]} Nxe4 {[%emt 0:00:20]} 7. Nf4 {[%emt 0:00:10]} d6 {[%emt 0:01:52]} 8. Be2 {[%emt 0:06:55]} Nd7 {[%emt 0:03:17]} 9. Be3 {[%emt 0:01:49]} Ne5 {[%emt 0:01:43]} 10. Qd4 {[%emt 0:01:58]} Nc5 {[%emt 0:03:45]} 11. O-O {[%emt 0:01:51]} Ne6 {[%emt 0:02:16]} 12. Nxe6 {[%emt 0:05:19]} Bxe6 {[%emt 0:01:19]} 13. Qb4 {[%emt 1:16:37]} Qc8 {[%emt 1:18:42]} 14. Qh4 {[%emt 0:00:00]} Qd8 {[%emt 0:00:00]} 15. Qe4 {[%emt 0:00:00]} Qc8 {[%emt 0:00:00]} 16. f4 {[%emt 0:00:00]} Bf5 {[%emt 0:00:00]} 17. Qd5 {[%emt 0:00:00]} Be6 {[%emt 0:00:00]} 18. Qe4 {[%emt 0:00:00]} Bf5 {[%emt 0:00:00]} 19. Qa4 {[%emt 0:00:00]} Ng4 {[%emt 0:00:00]} 20. Bxg4 {[%emt 0:00:00]} Bxg4 {[%emt 0:00:00]} 21. Rae1 {[%emt 0:00:00]} h6 {[%emt 0:00:00]} 22. h3 {[%emt 0:00:00]} Bd7 {[%emt 0:00:00]} 23. Qd4 {[%emt 0:00:00]} a6 {[%emt 0:00:00]} 24. Rf2 {[%emt 0:00:00]} Re8 {[%emt 0:00:00]} 25. c4 {[%emt 0:00:00]} Bc6 {[%emt 0:00:00]} 26. f5 {[%emt 0:00:00]} Re4 {[%emt 0:00:00]} 27. Qd3 {[%emt 0:00:00]} f6 {[%emt 0:00:00]} 28. g4 {[%emt 0:00:00]} Qd7 {[%emt 0:00:00]} 29. Rfe2 {[%emt 0:00:00]} Rae8 {[%emt 0:00:00]} 30. Bd4 {[%emt 0:00:00]} Rxe2 {[%emt 0:00:00]} 31. Rxe2 {[%emt 0:00:00]} Rxe2 {[%emt 0:00:00]} 32. Qxe2 {[%emt 0:00:00]} Kf8 {[%emt 0:00:00]} 33. c5 {[%emt 0:00:00]} Qe7 {[%emt 0:00:00]} 34. Qxe7+ {[%emt 0:00:00]} Kxe7 {[%emt 0:00:00]} 35. b4 {[%emt 0:00:50]} Kf7 {[%emt 0:00:00]} 36. a3 {[%emt 0:00:16]} g6 {[%emt 0:00:00]} 37. fxg6+ {[%emt 0:01:48]} Ke6 {[%emt 0:12:00]} 1/2-1/2

[Event "Swiss Youth-ch U14 2023"]
[Site "Olten"]
[Date "2023.05.27"]
[Round "4.6"]
[White "Delangle, Alexander"]
[Black "Gade, Niels Severin"]
[Result "1-0"]
[ECO "B50"]
[WhiteElo "1621"]
[BlackElo "1689"]
[Annotator "NA RC"]
[PlyCount "81"]
[EventDate "2023.05.26"]
[EventType "swiss"]
[EventCountry "SUI"]
[SourceTitle "playchess.com"]
[Source "ChessBase"]
[SourceQuality "1"]
[TimeControl "5400+30"]

1. e4 {[%emt 0:00:02]} c5 {[%emt 0:00:35]} 2. Nf3 {[%emt 0:00:04]} d6 {[%emt 0:00:12]} 3. c3 {[%emt 0:00:19]} Nf6 {[%emt 0:00:13]} 4. h3 {[%emt 0:00:11]} Nc6 {[%emt 0:00:11]} 5. Bd3 {[%emt 0:00:16]} e5 {[%emt 0:00:12]} 6. Bc2 {[%emt 0:00:05]} d5 {[%emt 0:00:55]} 7. exd5 {[%emt 0:01:18]} Qxd5 {[%emt 0:01:35]} 8. Qe2 {[%emt 0:05:32]} Be7 {[%emt 0:04:57]} 9. c4 {[%emt 0:02:47]} Qd6 {[%emt 0:01:56]} 10. O-O {[%emt 0:02:22]} O-O {[%emt 0:02:08]} 11. Nc3 {[%emt 0:02:00]} a6 {[%emt 0:02:39]} 12. Re1 {[%emt 0:01:51]} Re8 {[%emt 0:07:08]} 13. b3 {[%emt 0:06:29]} Bd8 {[%emt 0:02:58]} 14. Bb2 {[%emt 0:02:45]} Bc7 {[%emt 0:05:17]} 15. Ne4 {[%emt 0:17:11]} Nxe4 {[%emt 0:04:32]} 16. Bxe4 {[%emt 0:02:06]} f6 {[%emt 0:03:57]} 17. Nh4 {[%emt 0:05:48]} Be6 {[%emt 0:06:36]} 18. Qh5 {[%emt 0:03:15]} f5 {[%emt 0:05:13]} 19. Bxf5 {[%emt 0:03:07]} Bxf5 {[%emt 0:01:17]} 20. Nxf5 {[%emt 0:02:08]} Qf6 {[%emt 0:04:53]} 21. Ne3 {[%emt 0:05:27]} Ne7 {[%emt 0:07:48]} 22. Re2 {[%emt 0:04:08]} Ng6 {[%emt 0:04:17]} 23. Nd5 {[%emt 0:01:39]} Qc6 {[%emt 0:03:41]} 24. Rae1 {[%emt 0:02:54]} Bd6 {[%emt 0:08:15]} 25. Re4 {[%emt 0:02:26]} Rad8 {[%emt 0:04:22]} 26. d3 {[%emt 0:01:35]} Bb8 {[%emt 0:02:25]} 27. R1e3 {[%emt 0:03:42]} b5 {[%emt 0:07:15]} 28. Rg3 {[%emt 0:03:45]} Re6 {[%emt 0:03:35]} 29. h4 {[%emt 0:02:35]} Qd7 {[%emt 0:04:13]} 30. Reg4 {[%emt 0:02:46]} Qf7 {[%emt 0:00:28]} 31. Qg5 {[%emt 0:01:12]} Rd7 {[%emt 0:00:32]} 32. h5 {[%emt 0:00:34]} Ne7 {[%emt 0:00:22]} 33. Qxg7+ {[%emt 0:00:28]} Qxg7 {[%emt 0:00:10]} 34. Rxg7+ {[%emt 0:00:06]} Kf8 {[%emt 0:00:17]} 35. Nxe7 {[%emt 0:00:40]} Rexe7 {[%emt 0:00:19]} 36. Rg8+ {[%emt 0:00:35]} Kf7 {[%emt 0:00:07]} 37. R3g7+ {[%emt 0:01:27]} Kf6 {[%emt 0:00:27]} 38. Rxe7 {[%emt 0:00:13]} Rxe7 {[%emt 0:00:08]} 39. Rxb8 {[%emt 0:00:11]} bxc4 {[%emt 0:00:28]} 40. dxc4 {[%emt 0:00:34]} Re6 {[%emt 0:00:27]} 41. Rc8 {[%emt 0:00:21]} 1-0

[Event "Swiss Youth-ch U14 2023"]
[Site "Olten"]
[Date "2023.05.27"]
[Round "4.7"]
[White "Van Aepelen, Nikolai"]
[Black "Akinkhov, Mikhail"]
[Result "0-1"]
[ECO "D52"]
[WhiteElo "1623"]
[BlackElo "1495"]
[Annotator "NA RC"]
[PlyCount "140"]
[EventDate "2023.05.26"]
[EventType "swiss"]
[EventCountry "SUI"]
[SourceTitle "playchess.com"]
[Source "ChessBase"]
[SourceQuality "1"]
[TimeControl "5400+30"]

1. d4 {[%emt 0:00:01]} d5 {[%emt 0:00:04]} 2. c4 {[%emt 0:00:10]} c6 {[%emt 0:00:02]} 3. Nf3 {[%emt 0:00:08]} Nf6 {[%emt 0:00:04]} 4. Nc3 {[%emt 0:00:11]} e6 {[%emt 0:00:03]} 5. Bg5 {[%emt 0:00:06]} Nbd7 {[%emt 0:01:53]} 6. e3 {[%emt 0:00:17]} Bd6 {[%emt 0:02:33]} 7. Qc2 {[%emt 0:02:32]} O-O {[%emt 0:01:07]} 8. Rd1 {[%emt 0:03:41]} h6 {[%emt 0:03:53]} 9. h4 {[%emt 0:00:35]} Qa5 {[%emt 0:15:45]} 10. Bxf6 {[%emt 0:09:26]} Nxf6 {[%emt 0:01:03]} 11. Nd2 {[%emt 0:12:12]} Re8 {[%emt 0:08:17]} 12. Be2 {[%emt 0:14:42]} Qd8 {[%emt 0:07:03]} 13. f4 {[%emt 0:06:03]} h5 {[%emt 0:09:26]} 14. Nf3 {[%emt 0:16:42]} Ng4 {[%emt 0:15:49]} 15. Qd2 {[%emt 0:00:58]} f5 {[%emt 0:05:39]} 16. Ne5 {[%emt 0:01:40]} Qf6 {[%emt 0:07:25]} 17. Bxg4 {[%emt 0:04:54]} hxg4 {[%emt 0:02:58]} 18. g3 {[%emt 0:00:56]} Qe7 {[%emt 0:05:49]} 19. h5 {[%emt 0:01:59]} Bxe5 {[%emt 0:00:22]} 20. fxe5 {[%emt 0:00:29]} Kh7 {[%emt 0:03:44]} 21. cxd5 {[%emt 0:01:22]} exd5 {[%emt 0:02:17]} 22. Ne2 {[%emt 0:00:50]} Be6 {[%emt 0:01:32]} 23. Nf4 {[%emt 0:00:11]} Bf7 {[%emt 0:01:04]} 24. Qc2 {[%emt 0:01:29]} Qg5 {[%emt 0:01:28]} 25. Ke2 {[%emt 0:02:23]} Rh8 {[%emt 0:02:03]} 26. Rh4 {[%emt 0:03:23]} Kg8 {[%emt 0:00:56]} 27. Qb3 {[%emt 0:00:46]} Qe7 {[%emt 0:00:47]} 28. Rf1 {[%emt 0:00:59]} Rh6 {[%emt 0:00:34]} 29. Rc1 {[%emt 0:02:36]} Rc8 {[%emt 0:00:40]} 30. Rh2 {[%emt 0:07:07]} Qe8 {[%emt 0:00:25]} 31. Qd3 {[%emt 0:03:43]} Qd7 {[%emt 0:00:32]} 32. b4 {[%emt 0:00:59]} a6 {[%emt 0:00:30]} 33. a3 {[%emt 0:00:32]} Rf8 {[%emt 0:00:33]} 34. Qc2 {[%emt 0:00:23]} Rc8 {[%emt 0:00:35]} 35. Rch1 {[%emt 0:00:25]} Re8 {[%emt 0:00:24]} 36. Nd3 {[%emt 0:00:43]} b6 {[%emt 0:00:34]} 37. Qa4 {[%emt 0:00:33]} Ra8 {[%emt 0:00:12]} 38. Nf4 {[%emt 0:00:48]} Ra7 {[%emt 0:00:35]} 39. Kd3 {[%emt 0:00:27]} a5 {[%emt 0:00:21]} 40. Rb2 {[%emt 0:00:29]} axb4 {[%emt 0:00:19]} 41. Qxb4 {[%emt 0:00:15]} b5 {[%emt 0:00:35]} 42. Rc2 {[%emt 0:01:22]} Ra4 {[%emt 0:00:17]} 43. Qb2 {[%emt 0:00:11]} Qa7 {[%emt 0:00:22]} 44. Rc3 {[%emt 0:00:55]} Qa5 {[%emt 0:00:40]} 45. Ke2 {[%emt 0:01:49]} Qa8 {[%emt 0:00:26]} 46. Qc2 {[%emt 0:00:23]} Rxa3 {[%emt 0:00:33]} 47. Rxa3 {[%emt 0:00:22]} Qxa3 {[%emt 0:00:03]} 48. Rh2 {[%emt 0:00:45]} Qa6 {[%emt 0:00:33]} 49. Ke1 {[%emt 0:00:20]} Qa1+ {[%emt 0:00:09]} 50. Kf2 {[%emt 0:00:06]} Qa6 {[%emt 0:00:47]} 51. Qxf5 {[%emt 0:00:12]} Qa2+ {[%emt 0:00:27]} 52. Ne2 {[%emt 0:00:09]} b4 {[%emt 0:00:33]} 53. Qxg4 {[%emt 0:01:24]} b3 {[%emt 0:00:29]} 54. Qf5 {[%emt 0:00:14]} b2 {[%emt 0:00:49]} 55. Rh1 {[%emt 0:00:18]} Rxh5 {[%emt 0:00:39]} 56. Rxh5 {[%emt 0:01:05]} Bxh5 {[%emt 0:00:03]} 57. Qc8+ {[%emt 0:00:07]} Kh7 {[%emt 0:00:15]} 58. Qf5+ {[%emt 0:00:38]} Bg6 {[%emt 0:00:48]} 59. Qf4 {[%emt 0:00:23]} b1=Q {[%emt 0:00:52]} 60. Qh4+ {[%emt 0:00:05]} Kg8 {[%emt 0:00:41]} 61. Qd8+ {[%emt 0:00:13]} Kh7 {[%emt 0:00:45]} 62. Qh4+ {[%emt 0:00:02]} Kg8 {[%emt 0:00:36]} 63. Qd8+ {[%emt 0:00:04]} Kf7 {[%emt 0:00:43]} 64. Qd7+ {[%emt 0:01:03]} Kf8 {[%emt 0:00:19]} 65. Qd6+ {[%emt 0:00:10]} Ke8 {[%emt 0:00:37]} 66. Qxc6+ {[%emt 0:01:39]} Kd8 {[%emt 0:00:25]} 67. e6 {[%emt 0:01:18]} Qf5+ {[%emt 0:00:38]} 68. Ke1 {[%emt 0:00:01]} Qa1+ {[%emt 0:00:20]} 69. Nc1 {[%emt 0:00:16]} Qa5+ {[%emt 0:00:17]} 70. Kd1 {[%emt 0:00:18]} Qf1# {[%emt 0:00:26]} 0-1

[Event "Swiss Youth-ch U14 2023"]
[Site "Olten"]
[Date "2023.05.27"]
[Round "4.8"]
[White "Gafner, Lancelot"]
[Black "Papaux, Jeremie"]
[Result "0-1"]
[ECO "C90"]
[WhiteElo "1641"]
[BlackElo "1491"]
[Annotator "NA RC"]
[PlyCount "158"]
[EventDate "2023.05.26"]
[EventType "swiss"]
[EventCountry "SUI"]
[SourceTitle "playchess.com"]
[Source "ChessBase"]
[SourceQuality "1"]
[TimeControl "5400+30"]

1. e4 {[%emt 0:00:02]} e5 {[%emt 0:00:06]} 2. Nf3 {[%emt 0:00:04]} Nc6 {[%emt 0:00:06]} 3. Bb5 {[%emt 0:00:04]} a6 {[%emt 0:00:06]} 4. Ba4 {[%emt 0:00:05]} Nf6 {[%emt 0:00:32]} 5. O-O {[%emt 0:00:12]} d6 {[%emt 0:00:18]} 6. Re1 {[%emt 0:00:18]} Be7 {[%emt 0:01:18]} 7. c3 {[%emt 0:02:36]} O-O {[%emt 0:01:45]} 8. h3 {[%emt 0:00:23]} b5 {[%emt 0:01:13]} 9. Bc2 {[%emt 0:01:03]} Bd7 {[%emt 0:03:39]} 10. d4 {[%emt 0:00:38]} h6 {[%emt 0:02:02]} 11. Nbd2 {[%emt 0:04:28]} Nh7 {[%emt 0:00:53]} 12. Nf1 {[%emt 0:08:33]} exd4 {[%emt 0:02:54]} 13. cxd4 {[%emt 0:02:56]} Nb4 {[%emt 0:05:27]} 14. Bb1 {[%emt 0:02:19]} c5 {[%emt 0:10:16]} 15. d5 {[%emt 0:09:49]} a5 {[%emt 0:00:37]} 16. a3 {[%emt 0:00:35]} Na6 {[%emt 0:00:08]} 17. Qc2 {[%emt 0:00:47]} Re8 {[%emt 0:01:35]} 18. e5 {[%emt 0:07:48]} Nf8 {[%emt 0:00:35]} 19. e6 {[%emt 0:00:59]} fxe6 {[%emt 0:00:10]} 20. dxe6 {[%emt 0:01:10]} Bc6 {[%emt 0:00:53]} 21. Qf5 {[%emt 0:02:42]} Bf6 {[%emt 0:07:47]} 22. Qg4 {[%emt 0:10:20]} Kh8 {[%emt 0:05:20]} 23. h4 {[%emt 0:09:17]} Bxf3 {[%emt 0:07:57]} 24. gxf3 {[%emt 0:01:21]} Nc7 {[%emt 0:05:44]} 25. Bf5 {[%emt 0:03:12]} Bxh4 {[%emt 0:02:22]} 26. Ng3 {[%emt 0:02:38]} Bxg3 {[%emt 0:01:51]} 27. fxg3 {[%emt 0:00:20]} Qf6 {[%emt 0:02:32]} 28. Bd2 {[%emt 0:04:50]} d5 {[%emt 0:05:48]} 29. Bf4 {[%emt 0:01:34]} Ncxe6 {[%emt 0:02:52]} 30. Be5 {[%emt 0:01:58]} Qg5 {[%emt 0:00:27]} 31. Qh3 {[%emt 0:00:14]} Nd4 {[%emt 0:02:28]} 32. Bxd4 {[%emt 0:06:15]} cxd4 {[%emt 0:01:22]} 33. Kf2 {[%emt 0:01:58]} Qd2+ {[%emt 0:01:27]} 34. Kf1 {[%emt 0:00:23]} Re3 {[%emt 0:03:24]} 35. Qg2 {[%emt 0:01:03]} Qxg2+ {[%emt 0:00:05]} 36. Kxg2 {[%emt 0:00:04]} Rae8 {[%emt 0:00:25]} 37. Red1 {[%emt 0:00:20]} Re2+ {[%emt 0:01:00]} 38. Kf1 {[%emt 0:00:46]} g6 {[%emt 0:01:09]} 39. Bd3 {[%emt 0:02:16]} Rxb2 {[%emt 0:00:37]} 40. Rab1 {[%emt 0:00:31]} Rxb1 {[%emt 0:00:17]} 41. Rxb1 {[%emt 0:00:03]} Re3 {[%emt 0:00:18]} 42. Bxb5 {[%emt 0:00:21]} Rxf3+ {[%emt 0:00:19]} 43. Kg2 {[%emt 0:00:17]} Rxa3 {[%emt 0:00:10]} 44. Rd1 {[%emt 0:00:09]} Ne6 {[%emt 0:01:59]} 45. Bd7 {[%emt 0:00:06]} Ng5 {[%emt 0:00:18]} 46. Rxd4 {[%emt 0:00:25]} Ne4 {[%emt 0:00:48]} 47. Bc6 {[%emt 0:01:08]} Rxg3+ {[%emt 0:00:31]} 48. Kh2 {[%emt 0:00:05]} Rc3 {[%emt 0:02:13]} 49. Bxd5 {[%emt 0:00:20]} Rc2+ {[%emt 0:00:25]} 50. Kg1 {[%emt 0:00:23]} Rd2 {[%emt 0:00:27]} 51. Rxe4 {[%emt 0:01:14]} Rxd5 {[%emt 0:00:08]} 52. Re8+ {[%emt 0:00:03]} Kg7 {[%emt 0:00:07]} 53. Ra8 {[%emt 0:00:06]} Kf6 {[%emt 0:00:17]} 54. Ra6+ {[%emt 0:00:05]} Kg5 {[%emt 0:00:07]} 55. Kg2 {[%emt 0:00:06]} h5 {[%emt 0:00:12]} 56. Rc6 {[%emt 0:00:18]} Kf5 {[%emt 0:01:10]} 57. Rc8 {[%emt 0:00:15]} Rd2+ {[%emt 0:00:20]} 58. Kf3 {[%emt 0:00:08]} Ra2 {[%emt 0:00:06]} 59. Rc5+ {[%emt 0:00:05]} Kf6 {[%emt 0:00:12]} 60. Rc6+ {[%emt 0:00:27]} Kg5 {[%emt 0:00:31]} 61. Rc5+ {[%emt 0:00:24]} Kh6 {[%emt 0:00:05]} 62. Rc6 {[%emt 0:00:12]} a4 {[%emt 0:00:07]} 63. Ra6 {[%emt 0:00:05]} a3 {[%emt 0:00:06]} 64. Ra5 {[%emt 0:00:07]} Ra1 {[%emt 0:00:11]} 65. Kg2 {[%emt 0:00:04]} h4 {[%emt 0:00:37]} 66. Kh2 {[%emt 0:00:11]} g5 {[%emt 0:00:17]} 67. Ra6+ {[%emt 0:00:10]} Kh5 {[%emt 0:00:05]} 68. Ra4 {[%emt 0:00:11]} a2 {[%emt 0:00:18]} 69. Kg2 {[%emt 0:00:21]} h3+ {[%emt 0:00:14]} 70. Kh2 {[%emt 0:00:29]} g4 {[%emt 0:00:15]} 71. Ra5+ {[%emt 0:00:15]} Kh4 {[%emt 0:00:21]} 72. Ra4 {[%emt 0:00:53]} Rb1 {[%emt 0:00:27]} 73. Ra3 {[%emt 0:03:06]} g3+ {[%emt 0:00:35]} 74. Rxg3 {[%emt 0:00:09]} Rb2+ {[%emt 0:00:05]} 75. Kh1 {[%emt 0:00:33]} a1=Q+ {[%emt 0:00:07]} 76. Rg1 {[%emt 0:00:08]} Qa8+ {[%emt 0:00:07]} 77. Rg2 {[%emt 0:00:08]} hxg2+ {[%emt 0:00:10]} 78. Kh2 {[%emt 0:00:12]} g1=B+ {[%emt 0:00:17]} 79. Kxg1 {[%emt 0:00:11]} Qg2# {[%emt 0:25:31]} 0-1

[Event "Swiss Youth-ch U14 2023"]
[Site "Olten"]
[Date "2023.05.28"]
[Round "5.1"]
[White "Breyer, Thierry"]
[Black "Malli, Suvirr"]
[Result "0-1"]
[ECO "B53"]
[WhiteElo "1697"]
[BlackElo "2114"]
[Annotator "TA"]
[PlyCount "88"]
[EventDate "2023.05.26"]
[EventType "swiss"]
[EventCountry "SUI"]
[SourceTitle "playchess.com"]
[Source "ChessBase"]
[SourceQuality "1"]
[TimeControl "5400+30"]

{[%evp 9,88,0,0,0,0,-6,8,0,12,1,18,-10,32,0,17,-29,-16,-27,121,17,64,70,76,74,80,0,0,0,0,-14,-34,-43,-38,-77,-71,-93,-6,-69,-39,-155,-143,-143,-143,-163,-165,-170,-170,-234,-229,-431,-406,-468,-464,-529,-606,-610,-608,-597,-579,-658,-668,-660,-664,-639,-626,-853,-842,-1012,-313,-314,-282,-673,-673,-654,-647,-612,-200,-600,-594,-523,-508]} 1. e4 {[%emt 0:00:04]} c5 {[%emt 0:00:17]} 2. Nf3 {[%emt 0:00:04]} d6 {[%emt 0:00:45]} 3. d4 {[%emt 0:00:05]} cxd4 {[%emt 0:00:26]} 4. Qxd4 {[%emt 0:00:07]} Nc6 {[%emt 0:00:08]} 5. Bb5 {[%emt 0:00:04]} a6 {[%emt 0:00:18]} 6. Bxc6+ {[%emt 0:00:22] B53: Sicilian: 2...d6: Lines with Qxd4.} bxc6 {[%emt 0:00:13]} 7. Nc3 {[%emt 0:02:36]} e5 {[%emt 0:00:34]} 8. Qd3 {[%emt 0:00:52] The position is equal.} a5 {[%emt 0:01:41]} 9. Bg5 {[%emt 0:02:01]} Nf6 {[%emt 0:04:20]} 10. O-O-O {[%emt 0:01:41][%cal Of3e5] [#]} Ba6 $146 {[%emt 0:02:15]} (10... h6 $5 {[%cal Rh6g5]} 11. Bxf6 Qxf6 $11) ({Predecessor:} 10... h6 11. Bh4 Qb6 12. Nd2 Be6 13. Bxf6 gxf6 14. Nc4 Bxc4 15. Qxc4 Rb8 16. Na4 Qc7 {1-0 Gardim,L (1585)-Deus Filho,J (2013) Barrinha op 1st 2013 (3)}) 11. Qd2 {[%emt 0:09:47]} (11. Qe3 $5 {[%cal Rf3e5]}) 11... Rb8 {[%emt 0:06:27]} 12. Rhe1 {[%emt 0:14:24]} (12. Nh4 {is more appropriate.}) 12... Qb6 $11 {[%emt 0:04:34][%csl Gb8][%cal Rb6b2]} (12... h6 {simplifies} 13. Bxf6 Qxf6 14. Qe3 Qe7) 13. b3 {[%emt 0:00:57]} Qc5 {[%emt 0:03:16] [#]} (13... Nd7 $1 $11 {remains equal.}) 14. Kb2 {[%emt 0:04:21]} ({But not} 14. Kb1 $6 Nd7 $11) ({White should play} 14. Nxe5 $1 $16 Qxe5 15. Bf4) 14... h6 {[%emt 0:19:05]} (14... d5 $2 15. exd5 Qa3+ 16. Kb1 $18) (14... Nd7 $1 $11) 15. Bxf6 $14 {[%emt 0:13:08]} gxf6 {[%emt 0:00:07]} 16. Nh4 {[%emt 0:01:25]} Bc8 {[%emt 0:02:04]} (16... d5 $2 17. exd5 Bc4 18. d6 $18) 17. Qe3 {[%emt 0:11:47]} (17. f4 $16) 17... Qxe3 $1 $11 {[%emt 0:04:41]} 18. Rxe3 {[%emt 0:00:10]} Be6 {[%emt 0:00:49]} 19. h3 {[%emt 0:01:44]} h5 {[%emt 0:00:42]} 20. Rdd3 {[%emt 0:06:56]} Rd8 {[%emt 0:06:51]} 21. Rf3 {[%emt 0:02:41]} d5 {[%emt 0:01:43]} 22. Nf5 {[%emt 0:03:47]} d4 {[%emt 0:02:39]} (22... a4 $17) 23. Nb1 {[%emt 0:00:56]} (23. Na4 $1 $11) 23... h4 {[%emt 0:06:51][%cal Oa5a4]} 24. c4 {[%emt 0:03:00] Black continues to play with concentration.} (24. Nd2 $15) 24... Rb8 {[%emt 0:01:39]} 25. Kc2 {[%emt 0:00:56] [#]} a4 $1 {[%emt 0:01:57][%cal Ba5a4,Ba4a3][%mdl 544]} 26. Nd2 {[%emt 0:01:57] [#]} (26. Rd1 Ra8) 26... Ra8 $1 {[%emt 0:01:47]} 27. Kb2 {[%emt 0:00:47]} Bb4 {[%emt 0:03:36]} 28. Ng7+ {[%emt 0:03:07]} (28. Nb1 $142) 28... Ke7 $19 {[%emt 0:00:23]} 29. Nb1 $2 {[%emt 0:01:56]} (29. Nxe6 {was necessary.} fxe6 30. bxa4) 29... a3+ {[%emt 0:05:30]} 30. Kc2 {[%emt 0:00:36]} Bd7 {[%emt 0:00:29] ...Rag8 would be deadly.} 31. Nf5+ {[%emt 0:01:05]} Bxf5 {[%emt 0:07:18]} 32. Rxf5 {[%emt 0:00:58]} Rag8 {[%emt 0:00:13]} 33. Rdf3 {[%emt 0:01:53]} Rh6 {[%emt 0:00:06] White is weak on the dark squares} (33... Rxg2 34. Rxf6 Rf8 35. c5 $15) 34. g4 {[%emt 0:04:19]} hxg3 {[%emt 0:00:12][%mdl 64] Discovered Attack} 35. fxg3 {[%emt 0:00:20]} Rxh3 {[%emt 0:00:24]} 36. Rxf6 {[%emt 0:00:06]} Rh2+ {[%emt 0:00:54]} 37. Kc1 {[%emt 0:00:21]} Rg7 {[%emt 0:09:24]} 38. Rxc6 {[%emt 0:00:33]} Rh1+ $2 {[%emt 0:00:55]} (38... Rgh7 {( -> ...Rh1+)} 39. Rc7+ Ke8) 39. Kc2 {[%emt 0:00:13]} Rgh7 {[%emt 0:00:29]} 40. Rcf6 $2 {[%emt 0:06:21]} (40. c5 R7h2+ 41. Kd3 Rxb1 42. Rc7+ Ke8 43. Kc4 Bxc5 44. Rxc5 Rc1+ 45. Kd5 Rxc5+ 46. Kxc5 Rxa2 47. Kb4) 40... R7h2+ {[%emt 0:00:10]} 41. Rf2 {[%emt 0:00:25]} Rxf2+ {[%emt 0:00:23]} 42. Rxf2 {[%emt 0:00:01] [#]} d3+ $1 {[%emt 0:00:20][%mdl 576] Deflection} 43. Kxd3 {[%emt 0:00:01] Threatens to win with Nc3.} Rxb1 {[%emt 0:00:11]} 44. Rc2 {[%emt 0:00:18]} Bc5 {[%emt 0:01:21] Weighted Error Value: White=0.59/Black=0.25 (precise)} 0-1